[Event "18th Delhi GM Open 2020"]
[Site "Delhi"]
[Date "2020.01.12"]
[Round "6.1"]
[White "Karthik Venkataraman"]
[Black "Aleksandrov, Aleksej"]
[Result "0-1"]
[ECO "C65"]
[WhiteElo "2479"]
[BlackElo "2592"]
[Annotator "ChessBase"]
[PlyCount "136"]
[EventDate "2020.01.09"]
[EventType "swiss"]
[EventCountry "IND"]
[SourceTitle "playchess.com"]
[Source "ChessBase"]
[SourceQuality "1"]
[TimeControl "5400+30"]

1. e4 {[%emt 0:00:00]} e5 {[%emt 0:00:09]} 2. Nf3 {[%emt 0:00:00]} Nc6 {[%emt 0:00:03]} 3. Bb5 {[%emt 0:00:00]} Nf6 {[%emt 0:00:05]} 4. d3 {[%emt 0:00:00]} Bc5 {[%emt 0:00:51]} 5. Bxc6 {[%emt 0:00:00]} dxc6 {[%emt 0:00:06]} 6. Nbd2 {[%emt 0:00:01]} Be6 {[%emt 0:00:48]} 7. Nb3 {[%emt 0:01:38]} Bd6 {[%emt 0:08:32]} 8. O-O {[%emt 0:01:45]} Qe7 {[%emt 0:02:27]} 9. Na5 {[%emt 0:03:21]} O-O-O {[%emt 0:05:22]} 10. a3 {[%emt 0:01:16]} c5 {[%emt 0:11:05]} 11. Be3 {[%emt 0:02:27]} Nd7 {[%emt 0:16:34]} 12. b4 {[%emt 0:07:18]} Nb6 {[%emt 0:05:10]} 13. c4 {[%emt 0:03:01]} cxb4 {[%emt 0:00:06]} 14. Qc2 {[%emt 0:09:50]} b3 {[%emt 0:04:00]} 15. Nxb3 {[%emt 0:00:40]} c5 {[%emt 0:09:23]} 16. Nfd2 {[%emt 0:04:16]} Kd7 {[%emt 0:02:19]} 17. Nb1 {[%emt 0:01:38]} Rc8 {[%emt 0:00:55]} 18. Nc3 {[%emt 0:00:05]} Rhd8 {[%emt 0:06:43]} 19. Rab1 {[%emt 0:01:57]} Ke8 {[%emt 0:00:51]} 20. Nd2 {[%emt 0:15:10]} Qd7 {[%emt 0:06:13]} 21. Rfd1 {[%emt 0:00:43]} Kf8 {[%emt 0:00:52]} 22. Qb3 {[%emt 0:01:46]} Rb8 {[%emt 0:01:05]} 23. Nb5 {[%emt 0:07:39]} Ra8 24. Nf1 {[%emt 0:01:12]} Kg8 {[%emt 0:03:59]} 25. a4 {[%emt 0:01:53]} Bf8 {[%emt 0:00:32]} 26. Nc3 {[%emt 0:00:26]} Rab8 {[%emt 0:00:29]} 27. Qa3 {[%emt 0:03:40]} Qc6 {[%emt 0:02:05]} 28. Nb5 {[%emt 0:03:56]} Ra8 {[%emt 0:01:13]} 29. Qb3 {[%emt 0:00:57]} Rd7 {[%emt 0:00:54]} 30. Rd2 {[%emt 0:00:10]} Nc8 {[%emt 0:02:15]} 31. Nc3 {[%emt 0:00:18]} Ne7 {[%emt 0:00:44]} 32. Nd5 {[%emt 0:01:27]} Qd6 {[%emt 0:01:49]} 33. Qc3 {[%emt 0:01:59]} Nc6 {[%emt 0:00:34]} 34. Rb5 {[%emt 0:01:44]} Nd4 {[%emt 0:00:42]} 35. Bxd4 {[%emt 0:00:59]} cxd4 {[%emt 0:01:47]} 36. Qb3 {[%emt 0:00:11]} Rb8 {[%emt 0:01:17]} 37. Rb2 {[%emt 0:00:10]} f6 {[%emt 0:01:34]} 38. Ng3 {[%emt 0:00:11]} Rf7 {[%emt 0:00:52]} 39. a5 {[%emt 0:01:55]} Bd7 {[%emt 0:02:20]} 40. Nf5 {[%emt 0:07:36]} Qa6 {[%emt 0:00:51]} 41. Nc7 {[%emt 0:00:09]} Qc6 {[%emt 0:00:05]} 42. Nd5 {[%emt 0:05:56]} Qc8 {[%emt 0:01:12]} 43. c5 {[%emt 0:01:59]} Qd8 {[%emt 0:00:12]} 44. a6 {[%emt 0:00:01]} Bc6 {[%emt 0:01:29]} 45. Qc4 {[%emt 0:00:23]} g6 {[%emt 0:00:43]} 46. Ng3 {[%emt 0:00:34]} Bxb5 {[%emt 0:00:56]} 47. Qxb5 {[%emt 0:00:01]} b6 {[%emt 0:00:20]} 48. cxb6 {[%emt 0:01:01]} axb6 {[%emt 0:00:04]} 49. Qc6 {[%emt 0:04:22]} Kg7 {[%emt 0:00:29]} 50. h4 {[%emt 0:01:54]} Qd6 {[%emt 0:00:29]} 51. Qb5 {[%emt 0:00:19]} Qc5 {[%emt 0:00:17]} 52. Qb3 {[%emt 0:00:02]} Qa3 {[%emt 0:00:12]} 53. Qb5 {[%emt 0:00:14]} Qc5 {[%emt 0:00:32]} 54. Qb3 {[%emt 0:00:04]} Qa3 {[%emt 0:01:05]} 55. Qb5 {[%emt 0:00:17]} Ra8 {[%emt 0:00:21]} 56. Nxb6 {[%emt 0:01:11]} Rxa6 {[%emt 0:00:15]} 57. Nc4 {[%emt 0:00:57]} Qa4 {[%emt 0:00:07]} 58. Qd5 {[%emt 0:00:06]} Qd1+ {[%emt 0:00:33]} 59. Kh2 {[%emt 0:00:26]} Qg4 {[%emt 0:01:01]} 60. Rb7 {[%emt 0:00:07]} Qxh4+ {[%emt 0:00:30]} 61. Kg1 {[%emt 0:00:03]} Ra1+ {[%emt 0:00:04]} 62. Nf1 {[%emt 0:00:02]} Rxb7 {[%emt 0:00:07]} 63. Qxb7+ {[%emt 0:00:02]} Kh6 {[%emt 0:00:11]} 64. Qf7 {[%emt 0:00:13]} Bb4 {[%emt 0:00:09]} 65. Qb7 {[%emt 0:00:03]} Be1 {[%emt 0:00:18]} 66. Qb2 {[%emt 0:00:21]} Bc3 {[%emt 0:00:30]} 67. Qe2 {[%emt 0:00:09]} Qh5 {[%emt 0:00:32]} 68. f3 {[%emt 0:00:11]} Qh4 {[%emt 0:00:09]} 0-1

[Event "18th Delhi GM Open 2020"]
[Site "Delhi"]
[Date "2020.01.12"]
[Round "6.2"]
[White "Martinez Alcantara, Jose Eduardo"]
[Black "Krishna C R G"]
[Result "1-0"]
[ECO "C19"]
[WhiteElo "2606"]
[BlackElo "2436"]
[Annotator "ChessBase"]
[PlyCount "54"]
[EventDate "2020.01.09"]
[EventType "swiss"]
[EventCountry "IND"]
[SourceTitle "playchess.com"]
[Source "ChessBase"]
[SourceQuality "1"]
[TimeControl "5400+30"]

1. e4 {[%emt 0:00:00]} e6 {[%emt 0:00:00]} 2. d4 {[%emt 0:00:00]} d5 {[%emt 0:00:00]} 3. Nc3 {[%emt 0:00:00]} Bb4 {[%emt 0:00:00]} 4. e5 {[%emt 0:00:00]} c5 {[%emt 0:00:00]} 5. a3 {[%emt 0:00:00]} Bxc3+ {[%emt 0:00:00]} 6. bxc3 {[%emt 0:00:00]} Ne7 {[%emt 0:00:37]} 7. a4 {[%emt 0:00:02]} Nbc6 {[%emt 0:09:55]} 8. Nf3 {[%emt 0:00:30]} O-O {[%emt 0:01:18]} 9. Bd3 {[%emt 0:08:04]} f6 {[%emt 0:00:54]} 10. h4 {[%emt 0:07:18]} c4 {[%emt 0:05:26]} 11. Be2 {[%emt 0:12:01]} Bd7 {[%emt 0:13:10]} 12. exf6 {[%emt 0:04:58]} gxf6 {[%emt 0:00:11]} 13. Ba3 {[%emt 0:04:33]} Qc7 {[%emt 0:05:13]} 14. Qd2 {[%emt 0:06:10]} Rf7 {[%emt 0:00:08]} 15. h5 {[%emt 0:09:14]} Kh8 {[%emt 0:05:01]} 16. Nh4 {[%emt 0:07:51]} Rg7 {[%emt 0:00:39]} 17. f4 {[%emt 0:02:47]} a6 {[%emt 0:12:23]} 18. g4 {[%emt 0:05:10]} b5 {[%emt 0:11:38]} 19. Qe3 {[%emt 0:03:33]} Re8 {[%emt 0:08:21]} 20. Bc5 {[%emt 0:04:06]} Qa5 {[%emt 0:08:14]} 21. Qd2 {[%emt 0:08:10]} Reg8 {[%emt 0:03:33]} 22. Kd1 {[%emt 0:07:02]} Re8 {[%emt 0:06:34]} 23. g5 {[%emt 0:00:49]} fxg5 {[%emt 0:05:12]} 24. fxg5 {[%emt 0:00:01]} Nf5 {[%emt 0:00:51]} 25. h6 {[%emt 0:00:40]} Rgg8 {[%emt 0:00:05]} 26. Nxf5 {[%emt 0:00:47]} exf5 {[%emt 0:00:02]} 27. Bf3 {[%emt 0:00:11]} Qd8 {[%emt 0:04:05] Ke2} 1-0

[Event "18th Delhi GM Open 2020"]
[Site "Delhi"]
[Date "2020.01.12"]
[Round "6.4"]
[White "Gupta, Abhijeet"]
[Black "Shyaamnikhil P"]
[Result "1/2-1/2"]
[ECO "E11"]
[WhiteElo "2603"]
[BlackElo "2458"]
[Annotator "ChessBase"]
[PlyCount "121"]
[EventDate "2020.01.09"]
[EventType "swiss"]
[EventCountry "IND"]
[SourceTitle "playchess.com"]
[Source "ChessBase"]
[SourceQuality "1"]
[TimeControl "5400+30"]

1. d4 {[%emt 0:00:00]} Nf6 {[%emt 0:00:00]} 2. c4 {[%emt 0:00:00]} e6 3. Nf3 {[%emt 0:00:00]} Bb4+ {[%emt 0:00:28]} 4. Nbd2 {[%emt 0:00:00]} O-O {[%emt 0:00:16]} 5. g3 {[%emt 0:00:23]} b6 {[%emt 0:03:32]} 6. Bg2 {[%emt 0:00:21]} Bb7 {[%emt 0:00:08]} 7. O-O {[%emt 0:00:06]} Re8 {[%emt 0:03:24]} 8. Qc2 {[%emt 0:02:29]} Bxd2 {[%emt 0:14:08]} 9. Bxd2 {[%emt 0:01:04]} Be4 {[%emt 0:00:10]} 10. Qc1 {[%emt 0:00:43]} Nc6 {[%emt 0:01:11]} 11. Bc3 {[%emt 0:01:00]} Ne7 {[%emt 0:05:52]} 12. d5 {[%emt 0:04:52]} Ng6 {[%emt 0:08:11]} 13. dxe6 {[%emt 0:02:49]} fxe6 {[%emt 0:00:38]} 14. Qe3 {[%emt 0:05:52]} e5 {[%emt 0:02:04]} 15. Rad1 {[%emt 0:00:58]} d6 {[%emt 0:02:57]} 16. Bh3 {[%emt 0:00:36]} Bc6 {[%emt 0:03:25]} 17. Ng5 {[%emt 0:02:41]} Nf8 {[%emt 0:04:40]} 18. f4 {[%emt 0:06:23]} exf4 {[%emt 0:02:58]} 19. Qxf4 {[%emt 0:01:08]} h6 {[%emt 0:00:21]} 20. Nf3 {[%emt 0:03:36]} Ng6 {[%emt 0:03:31]} 21. Qc1 {[%emt 0:02:46]} Ne4 {[%emt 0:03:32]} 22. Nd4 {[%emt 0:02:16]} Bd7 {[%emt 0:06:52]} 23. Bg2 {[%emt 0:00:10]} Rb8 {[%emt 0:01:24]} 24. Qc2 {[%emt 0:09:37]} Qg5 {[%emt 0:03:39]} 25. Be1 {[%emt 0:07:48]} Re7 {[%emt 0:01:32]} 26. Nf3 {[%emt 0:02:04]} Qe3+ {[%emt 0:06:15]} 27. Kh1 {[%emt 0:01:21]} Rf8 {[%emt 0:04:58]} 28. b4 {[%emt 0:05:09]} Qa3 {[%emt 0:00:39]} 29. Rd3 Qa6 {[%emt 0:00:30]} 30. Kg1 {[%emt 0:02:04]} Qc8 {[%emt 0:02:11]} 31. Re3 {[%emt 0:01:18]} Qe8 {[%emt 0:00:10]} 32. Nd4 {[%emt 0:08:22]} Rxf1+ {[%emt 0:00:34]} 33. Kxf1 {[%emt 0:01:00]} Nf6 {[%emt 0:04:20]} 34. Rxe7 {[%emt 0:03:11]} Nxe7 {[%emt 0:00:05]} 35. c5 {[%emt 0:03:55]} dxc5 {[%emt 0:03:05]} 36. bxc5 {[%emt 0:00:04]} Qh5 {[%emt 0:01:18]} 37. cxb6 {[%emt 0:05:22]} cxb6 {[%emt 0:00:05]} 38. Kg1 {[%emt 0:01:27]} Bh3 {[%emt 0:01:26]} 39. Bf3 {[%emt 0:04:37]} Qe5 {[%emt 0:00:11]} 40. Qd3 {[%emt 0:03:32]} Qc5 {[%emt 0:03:07]} 41. Qc3 {[%emt 0:01:36]} Qe5 {[%emt 0:00:34]} 42. Qd3 {[%emt 0:04:17]} Qc5 {[%emt 0:00:06]} 43. e3 {[%emt 0:00:49]} Kh8 {[%emt 0:01:54]} 44. Bd2 {[%emt 0:00:41]} Qe5 {[%emt 0:02:31]} 45. e4 {[%emt 0:00:48]} Ng6 {[%emt 0:00:39]} 46. Bc3 {[%emt 0:02:04]} Qc5 {[%emt 0:00:09]} 47. Bb2 {[%emt 0:01:01]} Ne5 {[%emt 0:00:22]} 48. Qe2 {[%emt 0:00:43]} Nxf3+ {[%emt 0:01:07]} 49. Qxf3 {[%emt 0:00:01]} Qe5 {[%emt 0:00:08]} 50. Qf4 {[%emt 0:00:43]} Qxe4 {[%emt 0:00:49]} 51. Qxe4 {[%emt 0:00:25]} Nxe4 {[%emt 0:00:06]} 52. Nb5 {[%emt 0:00:20]} Bd7 {[%emt 0:00:50]} 53. Nxa7 {[%emt 0:00:27]} Kg8 {[%emt 0:00:38]} 54. Kg2 {[%emt 0:00:07]} Kf7 {[%emt 0:00:36]} 55. Kf3 {[%emt 0:00:04]} Nd2+ {[%emt 0:00:08]} 56. Ke2 {[%emt 0:00:11]} Nc4 {[%emt 0:00:10]} 57. Bd4 {[%emt 0:00:06]} Na3 {[%emt 0:02:24]} 58. Bxb6 {[%emt 0:00:26]} h5 {[%emt 0:00:18]} 59. Kd3 {[%emt 0:00:19]} Ke6 {[%emt 0:00:37]} 60. Kd4 {[%emt 0:00:39]} Nb5+ {[%emt 0:00:07]} 61. Ke4 {[%emt 0:01:39] Ke5+} 1/2-1/2

[Event "18th Delhi GM Open 2020"]
[Site "Delhi"]
[Date "2020.01.12"]
[Round "6.5"]
[White "Lugovskoy, Maxim"]
[Black "Pantsulaia, Levan"]
[Result "1-0"]
[ECO "B40"]
[WhiteElo "2453"]
[BlackElo "2598"]
[Annotator "ChessBase"]
[PlyCount "53"]
[EventDate "2020.01.09"]
[EventType "swiss"]
[EventCountry "IND"]
[SourceTitle "playchess.com"]
[Source "ChessBase"]
[SourceQuality "1"]
[TimeControl "5400+30"]

1. e4 {[%emt 0:00:00]} c5 {[%emt 0:00:00]} 2. Nf3 {[%emt 0:00:00]} e6 {[%emt 0:00:00]} 3. c3 {[%emt 0:00:00]} Nf6 {[%emt 0:00:04]} 4. e5 {[%emt 0:00:00]} Nd5 {[%emt 0:00:07]} 5. d4 {[%emt 0:00:00]} cxd4 {[%emt 0:00:08]} 6. cxd4 {[%emt 0:00:02]} Qc7 {[%emt 0:00:05]} 7. Bd2 {[%emt 0:01:19]} b6 {[%emt 0:00:15]} 8. Nc3 {[%emt 0:00:06]} Nxc3 {[%emt 0:00:09]} 9. bxc3 {[%emt 0:04:51]} Be7 {[%emt 0:03:13]} 10. Bd3 {[%emt 0:01:38]} Ba6 {[%emt 0:04:43]} 11. c4 {[%emt 0:02:10]} Bxc4 {[%emt 0:04:50]} 12. Rc1 {[%emt 0:01:01]} b5 {[%emt 0:00:07]} 13. O-O {[%emt 0:03:56]} O-O {[%emt 0:19:12]} 14. Ng5 {[%emt 0:04:08]} Bxg5 {[%emt 0:36:36]} 15. Bxg5 {[%emt 0:00:12]} Qb7 {[%emt 0:01:05]} 16. Rxc4 {[%emt 0:08:28]} bxc4 {[%emt 0:00:13]} 17. Bf6 {[%emt 0:00:11]} gxf6 {[%emt 0:03:14]} 18. exf6 {[%emt 0:01:44]} Kh8 {[%emt 0:01:26]} 19. Bxh7 {[%emt 0:00:06]} Rg8 {[%emt 0:06:45]} 20. Bxg8 {[%emt 0:00:54]} Qe4 {[%emt 0:00:05]} 21. Bxf7 {[%emt 0:05:02]} Qf5 {[%emt 0:00:27]} 22. d5 {[%emt 0:01:33]} Qxf6 {[%emt 0:01:05]} 23. dxe6 {[%emt 0:01:18]} dxe6 {[%emt 0:00:13]} 24. Bxe6 {[%emt 0:00:48]} Qxe6 {[%emt 0:01:31]} 25. Re1 {[%emt 0:00:05]} Qf6 {[%emt 0:04:35]} 26. Qh5+ {[%emt 0:00:05]} Kg7 {[%emt 0:00:17]} 27. Qg4+ {[%emt 0:00:03]} 1-0

[Event "18th Delhi GM Open 2020"]
[Site "Delhi"]
[Date "2020.01.12"]
[Round "6.8"]
[White "Khusenkhojaev, Muhammad"]
[Black "Ghosh, Diptayan"]
[Result "0-1"]
[ECO "E32"]
[WhiteElo "2420"]
[BlackElo "2550"]
[Annotator "RC"]
[PlyCount "82"]
[EventDate "2020.01.09"]
[EventType "swiss"]
[EventCountry "IND"]
[SourceTitle "playchess.com"]
[Source "ChessBase"]
[SourceQuality "1"]
[TimeControl "5400+30"]

1. d4 {[%emt 0:00:00]} Nf6 {[%emt 0:00:00]} 2. c4 {[%emt 0:00:00]} e6 {[%emt 0:00:00]} 3. Nc3 {[%emt 0:00:00]} Bb4 {[%emt 0:00:16]} 4. Qc2 {[%emt 0:00:03]} d6 {[%emt 0:01:09]} 5. Nf3 {[%emt 0:02:08]} Nbd7 {[%emt 0:01:03]} 6. a3 {[%emt 0:01:29]} Bxc3+ {[%emt 0:00:07]} 7. Qxc3 {[%emt 0:00:04]} O-O {[%emt 0:00:08]} 8. e3 {[%emt 0:10:29]} Re8 {[%emt 0:01:19]} 9. Be2 {[%emt 0:00:17]} e5 {[%emt 0:00:59]} 10. O-O {[%emt 0:00:31]} e4 {[%emt 0:03:29]} 11. Nd2 {[%emt 0:00:30]} d5 {[%emt 0:01:20]} 12. b4 {[%emt 0:00:44]} dxc4 {[%emt 0:01:38]} 13. Nxc4 {[%emt 0:00:54]} Nd5 {[%emt 0:00:59]} 14. Qc2 {[%emt 0:00:16]} N7b6 {[%emt 0:12:46]} 15. Nd2 {[%emt 0:09:53]} Bf5 {[%emt 0:04:20]} 16. Rd1 {[%emt 0:04:37]} Qg5 {[%emt 0:04:04]} 17. Nf1 {[%emt 0:01:28]} h5 {[%emt 0:09:00]} 18. Bd2 {[%emt 0:05:31]} h4 {[%emt 0:01:21]} 19. a4 {[%emt 0:01:47]} Bh3 {[%emt 0:05:08]} 20. g3 {[%emt 0:00:18]} Bg4 {[%emt 0:04:16]} 21. Bxg4 {[%emt 0:05:24]} Qxg4 {[%emt 0:00:57]} 22. Rdc1 {[%emt 0:00:05]} Nd7 {[%emt 0:04:13]} 23. Qd1 {[%emt 0:00:27]} Qg6 {[%emt 0:01:32]} 24. b5 {[%emt 0:01:07]} Re6 {[%emt 0:04:16]} 25. a5 {[%emt 0:01:19]} Rd8 {[%emt 0:01:16]} 26. Ra2 {[%emt 0:05:02]} N7f6 {[%emt 0:01:18]} 27. a6 {[%emt 0:09:25]} b6 {[%emt 0:02:34]} 28. Qe2 {[%emt 0:02:25]} Nh7 {[%emt 0:00:53]} 29. Rac2 {[%emt 0:01:17]} Ng5 {[%emt 0:01:44]} 30. Rxc7 {[%emt 0:00:26]} Nf3+ {[%emt 0:02:44]} 31. Kh1 {[%emt 0:01:41]} Nxc7 {[%emt 0:01:39]} 32. Rxc7 {[%emt 0:00:05]} Ra8 {[%emt 0:05:06]} 33. Bb4 {[%emt 0:00:33]} Qf5 {[%emt 0:00:49]} 34. Be7 {[%emt 0:07:31]} Qh3 {[%emt 0:03:54]} 35. d5 {[%emt 0:00:27]} Rh6 {[%emt 0:00:30]} 36. Rc1 {[%emt 0:02:12]} Rc8 {[%emt 0:02:57]} 37. Rd1 {[%emt 0:00:06]} Qd7 {[%emt 0:00:56]} 38. d6 {[%emt 0:02:19]} Rc5 {[%emt 0:00:18]} 39. gxh4 {[%emt 0:03:41]} Rg6 {[%emt 0:00:45]} 40. Bg5 {[%emt 0:00:33]} Rcxg5 {[%emt 0:01:44]} 41. hxg5 {[%emt 0:00:09]} Rxg5 {[%emt 0:00:04]} 0-1

[Event "18th Delhi GM Open 2020"]
[Site "Delhi"]
[Date "2020.01.12"]
[Round "6.9"]
[White "Tukhaev, Adam"]
[Black "Karthikeyan, P.."]
[Result "1-0"]
[ECO "B06"]
[WhiteElo "2548"]
[BlackElo "2416"]
[Annotator "ChessBase"]
[PlyCount "59"]
[EventDate "2020.01.09"]
[EventType "swiss"]
[EventCountry "IND"]
[SourceTitle "playchess.com"]
[Source "ChessBase"]
[SourceQuality "1"]
[TimeControl "5400+30"]

1. e4 g6 2. d4 Bg7 3. Nc3 d6 4. Be3 a6 5. h4 h6 6. f4 Nf6 7. Be2 h5 8. Nh3 d5 9. e5 Ng4 10. Qd2 Bf5 11. Bf3 e6 12. Bf2 Nd7 13. Ne2 c5 14. c4 dxc4 15. d5 Ngxe5 16. fxe5 Nxe5 17. Nhf4 Nxf3+ 18. gxf3 e5 19. Nh3 b5 20. Nc3 Bd3 21. Bxc5 Rc8 22. Qe3 Qxh4+ 23. Nf2 Qg3 24. Ne2 Bxe2 25. Kxe2 Qf4 26. Ne4 Qxe3+ 27. Bxe3 O-O 28. Rad1 c3 29. bxc3 Rc4 30. d6 1-0

[Event "18th Delhi GM Open 2020"]
[Site "Delhi"]
[Date "2020.01.12"]
[Round "6.10"]
[White "Das, Sayantan"]
[Black "Gholami, Aryan"]
[Result "1/2-1/2"]
[ECO "A05"]
[WhiteElo "2424"]
[BlackElo "2541"]
[Annotator "ChessBase"]
[PlyCount "61"]
[EventDate "2020.01.09"]
[EventType "swiss"]
[EventCountry "IND"]
[SourceTitle "playchess.com"]
[Source "ChessBase"]
[SourceQuality "1"]
[TimeControl "5400+30"]

1. Nf3 {[%emt 0:00:30]} Nf6 {[%emt 0:00:09]} 2. c4 {[%emt 0:00:45]} b6 {[%emt 0:01:41]} 3. g3 {[%emt 0:00:14]} Bb7 {[%emt 0:00:16]} 4. Bg2 {[%emt 0:00:06]} e6 {[%emt 0:00:08]} 5. O-O {[%emt 0:00:43]} Be7 {[%emt 0:00:13]} 6. b3 {[%emt 0:01:10]} O-O {[%emt 0:01:29]} 7. Bb2 {[%emt 0:00:11]} d5 {[%emt 0:01:08]} 8. e3 {[%emt 0:00:39]} c5 {[%emt 0:01:07]} 9. Nc3 {[%emt 0:01:20]} Nc6 {[%emt 0:08:02]} 10. cxd5 {[%emt 0:04:00]} Nxd5 {[%emt 0:02:31]} 11. Nxd5 {[%emt 0:01:41]} Qxd5 {[%emt 0:00:39]} 12. d4 {[%emt 0:04:28]} Na5 {[%emt 0:14:12]} 13. dxc5 {[%emt 0:29:09]} Bxc5 {[%emt 0:06:04]} 14. Qxd5 {[%emt 0:07:45]} Bxd5 {[%emt 0:00:08]} 15. Ne5 {[%emt 0:03:48]} Rfd8 {[%emt 0:02:19]} 16. Rfd1 {[%emt 0:02:31]} Bxg2 {[%emt 0:00:20]} 17. Kxg2 {[%emt 0:00:04]} f6 {[%emt 0:00:50]} 18. Nd3 {[%emt 0:03:26]} Be7 {[%emt 0:00:21]} 19. Rac1 {[%emt 0:03:35]} Rac8 {[%emt 0:00:42]} 20. Rxc8 {[%emt 0:04:39]} Rxc8 {[%emt 0:00:07]} 21. Rd2 {[%emt 0:00:48]} Kf7 {[%emt 0:00:58]} 22. f4 {[%emt 0:01:06]} Rd8 {[%emt 0:02:47]} 23. Kf3 {[%emt 0:01:20]} Nc6 {[%emt 0:01:05]} 24. Ke2 {[%emt 0:00:48]} Rc8 {[%emt 0:02:50]} 25. Rd1 {[%emt 0:01:57]} Ke8 {[%emt 0:01:34]} 26. Rc1 {[%emt 0:00:53]} Kd7 {[%emt 0:00:09]} 27. Rd1 {[%emt 0:02:05]} Ke8 {[%emt 0:00:23]} 28. Rc1 {[%emt 0:00:17]} Kd7 {[%emt 0:00:06]} 29. Rd1 {[%emt 0:00:12]} Ke8 {[%emt 0:00:07]} 30. Rc1 {[%emt 0:00:08]} Kd7 {[%emt 0:00:04]} 31. Rd1 {[%emt 0:00:10]} 1/2-1/2

[Event "18th Delhi GM Open 2020"]
[Site "Delhi"]
[Date "2020.01.12"]
[Round "6.12"]
[White "Stupak, Kirill"]
[Black "Muthaiah AL"]
[Result "1-0"]
[ECO "D37"]
[WhiteElo "2506"]
[BlackElo "2367"]
[Annotator "ChessBase"]
[PlyCount "127"]
[EventDate "2020.01.09"]
[EventType "swiss"]
[EventCountry "IND"]
[SourceTitle "playchess.com"]
[Source "ChessBase"]
[SourceQuality "1"]
[TimeControl "5400+30"]

1. d4 {[%emt 0:00:00]} d5 {[%emt 0:00:59]} 2. c4 {[%emt 0:00:00]} e6 {[%emt 0:01:05]} 3. Nf3 {[%emt 0:00:48]} Nf6 {[%emt 0:00:30]} 4. Nc3 {[%emt 0:00:04]} Nbd7 {[%emt 0:01:02]} 5. cxd5 {[%emt 0:04:08]} exd5 {[%emt 0:00:47]} 6. Bg5 {[%emt 0:00:03]} c6 {[%emt 0:00:37]} 7. e3 {[%emt 0:00:11]} Be7 {[%emt 0:01:59]} 8. Qc2 {[%emt 0:00:10]} O-O {[%emt 0:01:30]} 9. Bd3 {[%emt 0:00:17]} Re8 {[%emt 0:01:00]} 10. Bf4 {[%emt 0:01:23]} Nf8 {[%emt 0:02:30]} 11. h3 {[%emt 0:00:06]} Ne6 {[%emt 0:03:56]} 12. Be5 {[%emt 0:05:33]} g6 {[%emt 0:04:04]} 13. O-O {[%emt 0:09:26]} Ng7 {[%emt 0:03:30]} 14. Rab1 {[%emt 0:03:14]} a5 {[%emt 0:04:00]} 15. a3 {[%emt 0:01:45]} Bf5 {[%emt 0:01:30]} 16. b4 {[%emt 0:00:56]} axb4 {[%emt 0:04:01]} 17. axb4 {[%emt 0:00:02]} b5 {[%emt 0:02:59]} 18. Bxf5 {[%emt 0:15:18]} Nxf5 {[%emt 0:00:15]} 19. Ne2 {[%emt 0:00:14]} Qb6 {[%emt 0:16:20]} 20. Rfc1 {[%emt 0:06:35]} Rec8 {[%emt 0:03:50]} 21. Bxf6 {[%emt 0:08:28]} Bxf6 {[%emt 0:00:37]} 22. Ne5 {[%emt 0:00:39]} Nd6 {[%emt 0:02:28]} 23. Nd7 {[%emt 0:16:45]} Qd8 {[%emt 0:01:16]} 24. Nc5 {[%emt 0:00:01]} Nc4 {[%emt 0:04:15]} 25. Ra1 {[%emt 0:00:44]} Be7 {[%emt 0:08:23]} 26. Qd1 {[%emt 0:05:52]} Rc7 {[%emt 0:04:36]} 27. Nc3 {[%emt 0:10:46]} Rca7 {[%emt 0:02:00]} 28. Nd3 {[%emt 0:09:24]} Ra3 {[%emt 0:01:36]} 29. Rxa3 {[%emt 0:00:02]} Rxa3 {[%emt 0:00:10]} 30. Qc2 {[%emt 0:00:54]} Bd6 {[%emt 0:04:58]} 31. Nb1 {[%emt 0:00:53]} Ra6 {[%emt 0:02:43]} 32. Nc3 {[%emt 0:00:05]} f5 {[%emt 0:01:48]} 33. g3 {[%emt 0:00:28]} Qe7 {[%emt 0:00:23]} 34. Nc5 {[%emt 0:01:01]} Ra3 {[%emt 0:01:47]} 35. Nb1 {[%emt 0:00:36]} Ra1 {[%emt 0:03:40]} 36. Qc3 {[%emt 0:00:19]} Ra2 {[%emt 0:03:45]} 37. Rc2 {[%emt 0:00:01]} Qa7 {[%emt 0:00:17]} 38. Nd2 {[%emt 0:01:05]} Rxc2 {[%emt 0:01:09]} 39. Qxc2 {[%emt 0:00:01]} Qa3 {[%emt 0:00:39]} 40. Ndb3 {[%emt 0:01:10]} Qxb4 {[%emt 0:01:30]} 41. Qa2 {[%emt 0:00:30]} Bxc5 {[%emt 0:01:04]} 42. Nxc5 {[%emt 0:00:10]} Qa5 {[%emt 0:02:26]} 43. Qc2 {[%emt 0:00:37]} Qe1+ {[%emt 0:00:50]} 44. Kg2 {[%emt 0:00:21]} Kf7 {[%emt 0:00:52]} 45. Nd3 {[%emt 0:00:32]} Qa5 {[%emt 0:01:03]} 46. g4 {[%emt 0:00:00]} fxg4 {[%emt 0:00:23]} 47. hxg4 {[%emt 0:00:06]} Ke6 {[%emt 0:00:46]} 48. Qe2 {[%emt 0:01:39]} Qd2 {[%emt 0:00:34]} 49. Nc5+ {[%emt 0:00:07]} Ke7 {[%emt 0:01:15]} 50. Qf3 {[%emt 0:00:01]} Qa2 {[%emt 0:00:31]} 51. g5 {[%emt 0:00:24]} Ke8 {[%emt 0:00:48]} 52. Qh3 {[%emt 0:01:12]} Qa7 {[%emt 0:00:28]} 53. Qc8+ {[%emt 0:00:37]} Kf7 {[%emt 0:00:22]} 54. Qe6+ {[%emt 0:00:14]} Kg7 {[%emt 0:00:24]} 55. Nd7 {[%emt 0:00:59]} Qa3 {[%emt 0:00:10]} 56. Nc5 {[%emt 0:00:29]} Qa7 {[%emt 0:00:59]} 57. Qf6+ {[%emt 0:00:09]} Kg8 {[%emt 0:00:09]} 58. Ne6 {[%emt 0:00:09]} h5 {[%emt 0:00:51]} 59. Qxg6+ {[%emt 0:00:56]} Kh8 {[%emt 0:00:01]} 60. Qe8+ {[%emt 0:00:21]} Kh7 {[%emt 0:00:09]} 61. Qxh5+ {[%emt 0:00:38]} Kg8 {[%emt 0:00:01]} 62. Qe8+ {[%emt 0:00:14]} Kh7 {[%emt 0:00:03]} 63. g6+ {[%emt 0:00:13]} Kh6 {[%emt 0:00:06]} 64. g7 {[%emt 0:00:24]} 1-0